Cogmind - Beta 10.2 @@@ ROGUE MODE // 2021.03.13 @ 15:23:23 Player: ChromeKnight Result: Self-destructed Performance ------------- Evolutions (2) 1000 Regions Visited (6) 1200 Robots Destroyed (5) 25 Value Destroyed (287) 287 Prototype IDs (25) 500 Alien Tech Used (0) 0 Bonus (505) 505 TOTAL SCORE: 3517 Bonus ------- Pacifist 270 Follower Combat Kills 35 Entered Garrisons 200 Cogmind --------- Core Integrity 29/550 Matter 295/300 Energy 79/100 System Corruption 0% Temperature Cool (0) Movement Core (300) Ox5 Location -8/Garrison Parts ------- > --- POWER (1) -------- (None) > --- PROPULSION (2) --- (None) > --- UTILITY (6) ------ Large Storage Unit > --- WEAPON (2) ------- (None) > --- INVENTORY (10) --- Relay Coupler [NC] (26) Relay Coupler [Grunt] (28) Relay Coupler [Brawler] (23) Relay Coupler [Demolisher] (18) PSU Rigger Signal Generator Peak State ------------ > --- POWER ------------ Light Angular Momentum Engine > --- PROPULSION ------- Aluminum Leg Carbon-fiber Leg > --- UTILITY ---------- Large Storage Unit Makeshift Hacking Suite > --- WEAPON ----------- Makeshift Sword Makeshift Spear > --- INVENTORY -------- Light Nuclear Core Makeshift Power Source Relay Coupler [NC] Relay Coupler [Grunt] Relay Coupler [Brawler] Relay Coupler [Demolisher] PSU Rigger Mining Laser Signal Generator [Rating: 25] Favorites ----------- Power Light Angular Momentum Engine Engine Light Angular Momentum Engine Power Core Light Nuclear Core Propulsion Aluminum Leg Leg Aluminum Leg Hover Unit Gravmag System Utility Large Storage Unit Device PSU Rigger Storage Large Storage Unit Hackware Makeshift Hacking Suite Weapon EM Pulse Gun Energy Gun EM Pulse Gun Special Weapon Mining Laser Slashing Weapon Makeshift Sword Piercing Weapon Makeshift Spear Build | -11 -10 -10 -10 -9 -8 -8 ------- Run | Scr Mat Min Exi Min Mat Gar Slots Evolved 4 | . . . . . 4 . Power . | . . . . . . . Propulsion . | . . . . . . . Utility 4 | . . . . . 4 . Weapon . | . . . . . . . Parts Attached 34 | 6 10 . 4 1 1 12 Power 6 | 1 1 . 1 . . 3 Engine 5 | 1 1 . 1 . . 2 Core 1 | . . . . . . 1 Reactor . | . . . . . . . Propulsion 11 | 2 3 . 1 . . 5 Treads . | . . . . . . . Leg 9 | 2 3 . . . . 4 Wheel . | . . . . . . . Hover 2 | . . . 1 . . 1 Flight . | . . . . . . . Utility 6 | 1 3 . . . 1 1 Device 1 | . . . . . 1 . Storage 4 | 1 3 . . . . . Processor . | . . . . . . . Hackware 1 | . . . . . . 1 Protection . | . . . . . . . Artifact . | . . . . . . . Weapon 11 | 2 3 . 2 1 . 3 Energy Gun 6 | 2 3 . . 1 . . Energy Cannon . | . . . . . . . Ballistic Gun . | . . . . . . . Ballistic Cannon . | . . . . . . . Launcher . | . . . . . . . Special Weapon 2 | . . . 1 . . 1 Impact Weapon . | . . . . . . . Slashing Weapon 1 | . . . . . . 1 Piercing Weapon 2 | . . . 1 . . 1 Special Melee Weapon . | . . . . . . . Unidentified Prototypes . | . . . . . . . Parts Lost 10 | . . . . . . 10 Power 3 | . . . . . . 3 Propulsion 3 | . . . . . . 3 Utility 1 | . . . . . . 1 Weapon 3 | . . . . . . 3 Highest Loss Streak 10 | . . . . . . 10 Average Slot Usage (%) 72 | . 83 85 76 71 45 48 Engine 12 | . 14 14 14 14 9 7 Leg 13 | . 27 28 10 . . 10 Hover 5 | . . . 8 14 9 2 Storage 13 | . 14 14 14 14 9 9 Energy Gun 18 | . 27 28 16 28 18 7 Special Weapon 2 | . . . 6 . . . Piercing Weapon 3 | . . . 5 . . 3 Naked Turns . | . . . . . . . Heaviest Build 29 | 13 25 25 29 29 29 29 Greatest Support 25 | 20 20 20 20 11 11 25 Greatest Overweight (x) 7 | 1 3 1 2 2 2 7 Average Overweight (x) 1 | . . 1 1 2 2 1 Largest Inventory Capacity 14 | 6 14 10 10 10 10 10 Average Capacity 9 | 5 7 10 10 10 10 10 Most Carried 10 | 1 5 6 10 10 10 10 Average Carried 7 | . 3 5 8 9 9 9 Final Capacity 10 | 6 10 10 10 10 10 10 Final Carried 10 | 1 5 6 10 10 10 6 Class Distribution -------------------- 100% | Mutant Dominant Class ---------------- Mutant | -10/Materials Mutant | -10/Mines Mutant | -10/Exiles Mutant | -9/Mines Mutant | -8/Materials Mutant | -8/Garrison Resources | -11 -10 -10 -10 -9 -8 -8 ----------- Run | Scr Mat Min Exi Min Mat Gar Matter Collected 525 | 197 . . 133 . . 195 Remotely . | . . . . . . . Salvage Created 252 | . . . 133 . . 119 Parts 14 | . . . 7 . . 7 Haulers Intercepted . | . . . . . . . Recyclers Shooed . | . . . . . . . Parts Field Recycled . | . . . . . . . Retrieved Matter . | . . . . . . . Parts Self-Destructed . | . . . . . . . Prevented . | . . . . . . . Kills | -11 -10 -10 -10 -9 -8 -8 ------- Run | Scr Mat Min Exi Min Mat Gar Combat Hostiles Destroyed 5 | . . . . . . 5 Melee 4 | . . . . . . 4 Guns 1 | . . . . . . 1 Classes Destroyed 2 | . . . . . . 2 Swarmer 4 | . . . . . . 4 Grunt 1 | . . . . . . 1 Best Kill Streak 4 | . . . . . . 4 Combat Bots Only 4 | . . . . . . 4 Max Kills in Single Turn 2 | . . . . . . 2 Gunslinging . | . . . . . . . Exploded . | . . . . . . . Melee 2 | . . . . . . 2 Uniques/NPCs Destroyed . | . . . . . . . Combat | -11 -10 -10 -10 -9 -8 -8 -------- Run | Scr Mat Min Exi Min Mat Gar Damage Taken 1284 | . 20 . . . . 1264 Core 521 | . . . . . . 521 Absorbed by Shields . | . . . . . . . Core Remaining (%) 100 | 100 . . . 100 . . Volleys Fired 17 | . . . 11 . . 6 Largest 2 | . . . 1 . . 2 Hottest 100 | . . . 100 . . 100 Shots Fired 22 | . . . 11 . . 11 Gun 10 | . . . . . . 10 Cannon . | . . . . . . . Launcher . | . . . . . . . Special 12 | . . . 11 . . 1 Kinetic . | . . . . . . . Thermal 12 | . . . 11 . . 1 Explosive . | . . . . . . . Electromagnetic 10 | . . . . . . 10 Robot Hit Streak 5 | . . . 2 . . 5 Robot Miss Streak 2 | . . . 1 . . 2 Penetration Max . | . . . . . . . Secondary Targets . | . . . . . . . Shots Hit Robots 21 | . . . 9 . . 12 Core Hits 11 | . . . 4 . . 7 Critical Hits 3 | . . . 3 . . . Critical Kills . | . . . . . . . Critical Parts Destroyed 3 | . . . 3 . . . Melee Attacks 18 | . . . 6 . . 12 Impact . | . . . . . . . Slashing 4 | . . . . . . 4 Piercing 14 | . . . 6 . . 8 Sneak Attacks . | . . . . . . . Combat Hostiles . | . . . . . . . Follow-up Attacks 4 | . . . . . . 4 Damage Inflicted 918 | . . . 629 . . 289 Guns 66 | . . . . . . 66 Cannons . | . . . . . . . Explosions . | . . . . . . . Melee 750 | . . . 527 . . 223 Ramming . | . . . . . . . Kinetic . | . . . . . . . Thermal 102 | . . . 102 . . . Explosive . | . . . . . . . Electromagnetic 66 | . . . . . . 66 Impact . | . . . . . . . Slashing 107 | . . . . . . 107 Piercing 643 | . . . 527 . . 116 Highest Corruption . | . . . . . . . Average Corruption . | . . . . . . . Corruption Purged . | . . . . . . . Overload Shots . | . . . . . . . Overflow Damage 24 | . . . 12 . . 12 Projectiles 12 | . . . 12 . . . Explosions . | . . . . . . . Melee 12 | . . . . . . 12 Knockbacks . | . . . . . . . Impact . | . . . . . . . Kinetic . | . . . . . . . Secondary . | . . . . . . . Self-Inflicted Damage . | . . . . . . . Shots . | . . . . . . . Rammed . | . . . . . . . Targets Rammed . | . . . . . . . Kicked . | . . . . . . . Crushed . | . . . . . . . Highest Temperature 140 | . . . 140 . . 60 Average Temperature 48 | . . . 58 . . 22 Received Heat Transfer 495 | . . . . . . 495 Siege Activations . | . . . . . . . Robots Corrupted . | . . . . . . . Combat Hostiles . | . . . . . . . Parts Fried . | . . . . . . . Impact Corruptions . | . . . . . . . Robots Melted . | . . . . . . . Combat Hostiles . | . . . . . . . Parts Melted . | . . . . . . . Heat Transferred 200 | . . . 200 . . . Parts Sabotaged . | . . . . . . . Parts Stolen . | . . . . . . . Parts Stripped . | . . . . . . . Power Chain Reactions . | . . . . . . . Missiles Intercepted . | . . . . . . . Alert | -11 -10 -10 -10 -9 -8 -8 ------- Run | Scr Mat Min Exi Min Mat Gar Peak Influence 241 | . 5 1 . . . 241 Initial 1 | . . 1 . . . . Average 29 | . 3 1 . . . 104 Maximum Alert Level 1 | . . . . . . 1 Low Security (%) 97 | 100 100 100 . 100 100 89 Level 1 2 | . . . . . . 10 Level 2 . | . . . . . . . Level 3 . | . . . . . . . Level 4 . | . . . . . . . Level 5 . | . . . . . . . High Security . | . . . . . . . Max Security . | . . . . . . . Squads Dispatched . | . . . . . . . Investigation . | . . . . . . . Extermination . | . . . . . . . Reinforcement . | . . . . . . . Assault . | . . . . . . . Garrison . | . . . . . . . Intercept . | . . . . . . . Construction Impeded . | . . . . . . . Haulers Reinforced . | . . . . . . . Stealth | -11 -10 -10 -10 -9 -8 -8 --------- Run | Scr Mat Min Exi Min Mat Gar Distress Signals . | . . . . . . . Communications Jammed . | . . . . . . . Distress Signals . | . . . . . . . Times Spotted 15 | . . . . . . 15 Peak Tracking Total 10 | . . . . . . 10 Tactical Retreats 4 | . . . . . . 4 Traps | -11 -10 -10 -10 -9 -8 -8 ------- Run | Scr Mat Min Exi Min Mat Gar Traps Triggered 6 | . 4 . . . . 2 Indirectly . | . . . . . . . Trap Hack Attempts . | . . . . . . . Triggered . | . . . . . . . Disarmed . | . . . . . . . Reprogrammed . | . . . . . . . Reused . | . . . . . . . Traps Extracted . | . . . . . . . Installed . | . . . . . . . Triggered . | . . . . . . . Machines | -11 -10 -10 -10 -9 -8 -8 ---------- Run | Scr Mat Min Exi Min Mat Gar Machines Disabled 1 | . . . . . . 1 Max in Single Turn 1 | . . . . . . 1 Garrison Relay 1 | . . . . . . 1 Machines Sabotaged . | . . . . . . . Garrisons Compromised . | . . . . . . . Overloaded Fab Kills . | . . . . . . . Fab Network Shutdowns . | . . . . . . . Hacking | -11 -10 -10 -10 -9 -8 -8 --------- Run | Scr Mat Min Exi Min Mat Gar Machines Accessed 5 | . 3 . 1 . 1 . Terminals 3 | . 3 . . . . . Fabricators . | . . . . . . . Repair Stations . | . . . . . . . Recycling Units . | . . . . . . . Scanalyzers . | . . . . . . . Garrison Access 1 | . . . . . 1 . Total Hacks 7 | . 5 . 1 . 1 . Successful 5 | . 3 . 1 . 1 . Failed 2 | . 2 . . . . . Catastrophic 1 | . 1 . . . . . Database Lockouts . | . . . . . . . Manual 3 | . 2 . 1 . . . Terminals 5 | . 5 . . . . . Fabricators . | . . . . . . . Repair Stations . | . . . . . . . Recycling Units . | . . . . . . . Scanalyzers . | . . . . . . . Garrison Access 1 | . . . . . 1 . Terminal Hacks 4 | . 3 . 1 . . . Prototype ID Bank 1 | . 1 . . . . . Alert Level 1 | . 1 . . . . . Zone Layout 1 | . 1 . . . . . EX-Prototype ID Bank 1 | . . . 1 . . . Fabricator Hacks . | . . . . . . . Repair Station Hacks . | . . . . . . . Recycling Unit Hacks . | . . . . . . . Scanalyzer . | . . . . . . . Garrison Access Hacks 1 | . . . . . 1 . Unlock Access 1 | . . . . . 1 . Unauthorized Hacks . | . . . . . . . Terminals . | . . . . . . . Fabricators . | . . . . . . . Repair Stations . | . . . . . . . Recycling Units . | . . . . . . . Scanalyzers . | . . . . . . . Garrison Access . | . . . . . . . Data Cores Recovered . | . . . . . . . Used . | . . . . . . . Hacking Detections 3 | . 3 . . . . . Full Trace Events . | . . . . . . . Feedback Events . | . . . . . . . Feedback Blocked . | . . . . . . . Robot Schematics Acquired . | . . . . . . . Robots Built . | . . . . . . . Matter . | . . . . . . . Time . | . . . . . . . Total Robot Build Rating . | . . . . . . . Part Schematics Acquired . | . . . . . . . Parts Built . | . . . . . . . Matter . | . . . . . . . Time . | . . . . . . . Total Part Build Rating . | . . . . . . . Parts Repaired . | . . . . . . . Time . | . . . . . . . Parts Recycled . | . . . . . . . Recycled Matter . | . . . . . . . Retrieved Matter . | . . . . . . . Retrieved Components . | . . . . . . . Parts Scanalyzed . | . . . . . . . Part Schematics Acquired . | . . . . . . . Parts Damaged . | . . . . . . . Bothacking | -11 -10 -10 -10 -9 -8 -8 ------------ Run | Scr Mat Min Exi Min Mat Gar Used RIF Installer . | . . . . . . . Robots Hacked . | . . . . . . . Non-combat . | . . . . . . . Combat . | . . . . . . . Robot Hacks Applied . | . . . . . . . Relay Couplers Released 4 | . . . . . . 4 Machine Destruction 4 | . . . . . . 4 Robots Rewired 3 | . . . 3 . . . Allies Hacked . | . . . . . . . Hacks Repelled . | . . . . . . . Allies | -11 -10 -10 -10 -9 -8 -8 -------- Run | Scr Mat Min Exi Min Mat Gar Total Allies 5 | . . . 3 2 . . Largest Group 5 | . . . 3 5 5 5 Highest-Rated Group 82 | . . . 37 82 82 82 Highest-Rated Ally 31 | . . . 21 31 31 31 Total Orders 1 | . . . . 1 . . AID 1 | . . . . 1 . . Ally Attacks 10 | . . . . . . 10 Total Damage 331 | . . . . . . 331 Kills 1 | . . . . . . 1 Allies Corrupted . | . . . . . . . Allies Melted . | . . . . . . . Intel | -11 -10 -10 -10 -9 -8 -8 ------- Run | Scr Mat Min Exi Min Mat Gar Robot Analysis Total . | . . . . . . . Derelict Logs Recovered 1 | . . 1 . . . . Drone Launches . | . . . . . . . Drone Recoveries . | . . . . . . . Exploration | -11 -10 -10 -10 -9 -8 -8 ------------- Run | Scr Mat Min Exi Min Mat Gar Turns Passed 2311 | 85 317 231 1090 171 79 338 Spaces Moved 1321 | 69 238 154 589 80 40 151 Core 24 | 15 1 . . . . 8 Treads . | . . . . . . . Legs 787 | 54 237 154 231 . . 111 Wheels . | . . . . . . . Hover 510 | . . . 358 80 40 32 Flight . | . . . . . . . Fastest Speed 50 | 50 120 150 150 180 180 120 Average Speed 155 | 109 124 150 168 180 180 165 Slowest Speed 400 | 120 200 150 180 180 180 400 Overloaded Moves . | . . . . . . . Propulsion Burnouts . | . . . . . . . Robots Hopped . | . . . . . . . Cave-ins Triggered . | . . . . . . . Exploration Rate (%) 31 | 4 36 30 89 29 6 23 Regions Visited 6 Branch Regions 3 Pre-discovered Areas . | . . . . . . . Known Exits Taken 2 | . . . 1 . 1 . Unknown Exits Taken 4 | 1 1 1 . 1 . . Scrap Searched . | . . . . . . . Spaces Dug . | . . . . . . . Terrain Destroyed . | . . . . . . . Melee . | . . . . . . . Projectile . | . . . . . . . AOE . | . . . . . . . Terrain Rammed . | . . . . . . . Walls Destroyed . | . . . . . . . Machines Disabled . | . . . . . . . Actions | -11 -10 -10 -10 -9 -8 -8 --------- Run | Scr Mat Min Exi Min Mat Gar Total 1510 | 75 254 154 649 108 48 222 Wait 34 | . . . . 26 7 1 Move 1315 | 68 237 153 588 79 39 151 Hop . | . . . . . . . Pick Up 19 | 1 4 1 5 1 . 7 Fast Attach 20 | 6 10 . 2 . . 2 Attach 8 | . . . . 1 1 6 Detach 2 | . . . . . 1 1 Swap 6 | . . . 2 . . 4 Drop 18 | . 3 . 4 1 . 10 Fire 17 | . . . 11 . . 6 Melee 14 | . . . 6 . . 8 Ram . | . . . . . . . Kick . | . . . . . . . Crush . | . . . . . . . Escape Stasis 26 | . . . . . . 26 Rewire 31 | . . . 31 . . . Trap . | . . . . . . . Miscellaneous . | . . . . . . . Route ------- -11/Scrapyard -10/Materials (discovered 2 exits: [*Mat] / [*Min]) -10/Mines -10/Exiles (discovered 2 exits: *Min x2) -9/Mines -8/Materials -8/Garrison History --------- Turn | Location | Event 51 | -11/Scrapyard | Discovered new exit (range 15) 86 | -11/Scrapyard | Entered Materials 131 | -10/Materials | Discovered new exit (range 10) 243 | -10/Materials | Discovered new exit (range 10) 307 | -10/Materials | Build established: Mutant 403 | -10/Materials | Entered Mines 404 | -10/Mines | Met a Derelict testing a Signal Generator 415 | -10/Mines | Found Signal Generator 626 | -10/Mines | Deemed a non-threat by the Exiles lab entrance 628 | -10/Mines | Discovered new exit (range 5) 634 | -10/Mines | Entered Exiles 634 | -10/Exiles | Found Exiles lab destroyed 635 | -10/Exiles | Identified exit to Mines 880 | -10/Exiles | Opened EX-Vault 892 | -10/Exiles | Found PSU Rigger 1724 | -10/Exiles | Entered Mines 1724 | -9/Mines | Accompanied by 3 allies 1803 | -9/Mines | Met a Derelict bent on vengeance 1864 | -9/Mines | Discovered new exit (range 14) 1895 | -9/Mines | Entered Materials 1895 | -8/Materials | Accompanied by 5 allies 1895 | -8/Materials | Evolved 4 slots: Utility x4 1900 | -8/Materials | Led the pair of lost Derelicts to an unsafe place 1965 | -8/Materials | Identified exit to Garrison 1974 | -8/Materials | Entered Garrison 1974 | -8/Garrison | Accompanied by 5 allies 2036 | -8/Garrison | Triggered checkpoint 2119 | -8/Garrison | Garrison Relay disabled 2236 | -8/Garrison | Triggered checkpoint 2238 | -8/Garrison | Triggered checkpoint 2288 | -8/Garrison | Core integrity fell below 50% 2305 | -8/Garrison | Core integrity fell below 20% 2312 | -8/Garrison | Self-destructed Last Messages --------------- 02265_ S-10 Pest destroyed. 02267_ Mak. Sword follow-up attack on S-10 Pest. 02267_ Carbon-fiber Leg destroyed. 02269_ Destroyed Flight Unit. 02269_ Mak. Sword follow-up attack on S-10 Pest. 02269_ Lgt. Angular Momentum Engine destroyed. 02271_ Mak. Sword follow-up attack on S-10 Pest. 02271_ S-10 Pest destroyed. 02273_ Mak. Sword destroyed. 02277_ Acquired 10 matter. 02279_ Mak. Spear destroyed. 02281_ Lgt. Nuclear Core destroyed. 02282_ Acquired 8 matter. 02283_ Mak. Hacking Suite destroyed. 02283_ Dropped Signal Generator. 02284_ Acquired Signal Generator. 02286_ Acquired 7 matter. 02287_ Gravmag System destroyed. 02296_ Mak. Power Source destroyed. 02308_ Mining Laser destroyed. Map ----- +----------------------------------------------------+ | ?????????????????????????????????????????????????? | | ?????????????????????????????????????????????????? | | ?????????????????????????????????????????????????? | | ?????????????????????????????????????????????????? | | ?????????????????????????????????????????????????? | | ?????????????????????????????????????????????????? | | ?????????????????????????????????????????????????? | | ?????????????????????????????????????????????????? | | ?????????????????????????????????????????????????? | | ?????????????????????????????????????????????????? | | ?????????????????????????????????????????????????? | | ????????######???????????????????????????????????? | | ????????# #???????????????????????????????????? | | ????????# #???????????????????????????????????? | | ????????# #???????????????????????????????????? | | ????????### #???????????????????????????????????? | | ??????????# #???????????????????????????????????? | | ??????????# #???????????????????????????????????? | | ??????????# #???????????????????????????????????? | | ????####### #???????????????????????????????????? | | ????#! %=[ ##############??????????????????????? | | ????#%##### = %*g #??????????????????????? | | ????#*#???# ^ =%%= #??????????????????????? | | ????# #???#+######+#####Yg#??????????????????????? | | ????#[#????????????????# #??????????????????????? | | ??###!+????????????????# @#??????????????????????? | | ??#%= #????????????????# #??????????????????????? | | ??#==*#????????????????# #??????????????????????? | | ??#% *#????????????????# #?#####????????????????? | | ??### #????????????????# #? #???#????????????? | | ????# ###?????????????## ## ## ##???????????? | | ????# #"#?????????????# #???????????? | | ????#]["#?????????????# #???????????? | | ????#|[[#?????????????# #???????????? | | ????# "#?????????????# ## ## #???????????? | | ????###"#?????????????# #? #??? #???????????? | | ???????##???????????? ?? ??????????????? | | ????????????????????# ?? ????????????? | | ????????????????????# ??? "???????????? | | ????????????????????# ?? "???????????? | | ????????????????????### ##??? ## #???????????? | | ??????????????????????# #???? #?^ #???????????? | | ??????????????????????# ????? ?? ??????????? | | ??????????????????????# ????? ??? ??????????? | | ??????????????????????# ?????? ??? ??????????? | | ??????????????????????# #??????#???????????????? | | ??????????????????????# ???????????????????????? | | ?????????????????????????????????????????????????? | | ?????????????????????????????????????????????????? | | ?????????????????????????????????????????????????? | +----------------------------------------------------+ Best States ------------- Heat Dissipation 31 Energy Generation 18 Energy Capacity 250 Matter Stores 300 Matter Capacity 300 Sight Range 16 Terrain Scan Density 10 Evasion (%) 40 Offensive Hacking 11 Item Schematics ----------------- None Robot Schematics ------------------ None Fabricated ------------ Nothing Alien Tech Used ----------------- None Achievements -------------- None Challenges ------------ None Game ------ Seed SeismicLobotomyBoregun Manual? 0 Play Time 00:11:52 Cumulative 61.3 hours Start 2021.03.13 @ 15:06:49 End 2021.03.13 @ 15:23:23 Sessions 1 Manual Loads 0 Difficulty Rogue Special Mode None Game No. 162 Rogue 11 Adventurer 148 Explorer 3 Win Type - Total 0 Types 0/0/0/0/0/0/0/0/0 Lore% 41 Gallery% 57 Achievement% 45 Wizard Run 0 Options --------- ASCII 0 Keyboard 0 Movement Arrows Keybinds 0 Fullscreen 1 Font 18/SmallcapsGlow Map View 76x50 Tactical HUD 1 Map Filters NONE Filters NONE Steam 1 RUN: 70749913-e2a1-49a5-8956-5861d51d9936